Cogmind - Beta 15 @@@ ROGUE MODE // 2025.08.06 @ 01:20:47 Player: Cracklepappy Result: Self-destructed Performance ------------- Evolutions (3) 1500 Regions Visited (11) 2200 Robots Destroyed (315) 1575 Value Destroyed (10597) 10597 Prototype IDs (23) 460 Alien Tech Used (0) 0 Bonus (733) 733 TOTAL SCORE: 17065 Bonus ------- High Alert Combat Kills 1781 Follower Combat Kills 699 Entered Garrisons 600 Friendly Fire -2347 Cogmind --------- Core Integrity 36/700 Matter 73/300 Energy 64/100 System Corruption 7% Temperature Cool (0) Movement Rolling (265) Ox11 Location -7/Garrison Parts ------- > --- POWER (1) -------- Reinforced Deuterium Engine > --- PROPULSION (4) --- Compact Wheel > --- UTILITY (4) ------ Improved Cooling System Cargo Storage Unit Core Analyzer > --- WEAPON (4) ------- Advanced Plasma Cannon Gauss Cannon Light Antimatter Cannon > --- INVENTORY (30) --- Antimatter Reactor Improved Cooling System Improved Cooling System Improved Matter Compressor (0) Machine Analyzer Advanced Targeting Computer Recoil Stabilizer Precision Matter Filter Precision Matter Filter Improved Focal Shield Improved Shield Generator Tractor Beam Improved Trap Extractor (0/6) 01-MTF's Shockpuncher Autogun Autogun Autogun Autogun Light Antimatter Cannon Heavy Rocket Launcher Rocket Array Datajack Plasma Cutter Gravity Flail Kinetic Spear Peak State ------------ > --- POWER ------------ Antimatter Reactor > --- PROPULSION ------- Wheel Compact Wheel Armored Huge Wheel > --- UTILITY ---------- Cargo Storage Unit Advanced Targeting Computer Improved Focal Shield > --- WEAPON ----------- Gauss Rifle Gauss Rifle Gauss Rifle Gauss Rifle > --- INVENTORY -------- Antimatter Reactor Antimatter Reactor Compact Wheel Improved Cooling System Improved Cooling System Damper Plating Authchip [R/NC] Improved Arc Projector 01-MTF's Shockpuncher Beamcaster Beamcaster Beamcaster Heavy Beamcaster Advanced Plasma Cannon Battle Rifle Battle Rifle Battle Rifle Battle Rifle Battle Rifle Flak Gun Battle Cannon Battle Cannon Battle Cannon Battle Cannon Great Maul Ripper Kinetic Spear [Rating: 56] Favorites ----------- Power Reinforced Deuterium Engine Engine Reinforced Deuterium Engine Power Core Light Nuclear Core Reactor Antimatter Reactor Propulsion Armored Wheel Wheel Armored Wheel Utility Advanced Targeting Computer Device Cooling System Storage Huge Storage Unit Processor Advanced Targeting Computer Hackware Hacking Suite Protection Powered Armor Weapon Minigun Energy Gun Medium Laser Energy Cannon Heavy Particle Cannon Ballistic Gun Minigun Ballistic Cannon Magnetic Acceleration Cannon Launcher Rocket Array Special Weapon Plasma Cutter Impact Weapon Great Maul Piercing Weapon Kinetic Spear Special Melee Weapon Improved Datajack Build | -11 -10 -10 -9 -9 -9 -8 -8 -7 -7 -7 -7 ------- Run | Yrd Mat Min Mat Sto Gar Mat Gar Fac Was Fac Gar Slots Evolved 6 | . . . 2 . . 2 . 2 . . . Power . | . . . . . . . . . . . . Propulsion 2 | . . . . . . . . 2 . . . Utility 2 | . . . . . . 2 . . . . . Weapon 2 | . . . 2 . . . . . . . . Parts Attached 163 | 9 13 3 30 16 7 9 14 6 14 40 2 Power 18 | 1 1 . 3 5 1 . 1 . 2 4 . Engine 12 | 1 1 . 1 4 1 . 1 . 1 2 . Core 4 | . . . 2 1 . . . . . 1 . Reactor 2 | . . . . . . . . . 1 1 . Propulsion 34 | 3 2 1 9 . 1 . 1 4 . 13 . Treads . | . . . . . . . . . . . . Leg . | . . . . . . . . . . . . Wheel 34 | 3 2 1 9 . 1 . 1 4 . 13 . Hover . | . . . . . . . . . . . . Flight . | . . . . . . . . . . . . Utility 37 | 2 4 2 4 3 2 3 3 1 2 10 1 Device 16 | 1 . 2 2 . 2 1 1 1 1 4 1 Storage 8 | 1 2 . 2 1 . . . . 1 1 . Processor 6 | . 2 . . 1 . 1 . . . 2 . Hackware 5 | . . . . 1 . . 2 . . 2 . Protection 2 | . . . . . . 1 . . . 1 . Artifact . | . . . . . . . . . . . . Weapon 74 | 3 6 . 14 8 3 6 9 1 10 13 1 Energy Gun 6 | 2 1 . 1 1 . . . . 1 . . Energy Cannon 14 | . 1 . 7 1 . 2 1 1 1 . . Ballistic Gun 39 | 1 2 . 6 3 3 4 6 . 6 7 1 Ballistic Cannon 4 | . . . . . . . 1 . . 3 . Launcher 4 | . 1 . . 1 . . . . . 2 . Special Weapon 2 | . 1 . . . . . 1 . . . . Impact Weapon 3 | . . . . 1 . . . . 1 1 . Slashing Weapon . | . . . . . . . . . . . . Piercing Weapon 1 | . . . . . . . . . 1 . . Special Melee Weapon 1 | . . . . 1 . . . . . . . Unidentified Prototypes 14 | . . . 2 3 . . . . 2 7 . Corrupted Parts 1 | . . . . . 1 . . . . . . System Corruption 3 | . . . . . 3 . . . . . . Parts Lost 21 | . 4 . 2 . . . 1 . 3 3 8 Power 1 | . 1 . . . . . . . . . . Propulsion 8 | . . . 1 . . . 1 . . 2 4 Utility 4 | . 2 . . . . . . . 1 1 . Weapon 8 | . 1 . 1 . . . . . 2 . 4 Highest Loss Streak 3 | . 3 . 1 . . . 1 . 2 1 2 To Critical Strikes . | . . . . . . . . . . . . Average Backups 23 | 5 17 18 19 23 23 23 23 24 17 28 27 Power . | 1 . . . . 1 1 1 1 1 1 1 Propulsion 2 | 2 5 4 3 2 1 1 . . . 1 . Utility 9 | . 3 4 7 9 12 11 11 12 5 11 12 Weapon 9 | 1 9 9 7 9 7 7 8 9 9 13 11 Tool/Special . | . . . . . . . . . . . . Unused Backups 88 | 4 4 5 11 6 4 . 4 . 16 18 16 Power 3 | 1 . . . . . . . . 1 . 1 Propulsion 10 | 3 1 1 1 1 . . . . 1 2 . Utility 36 | . 2 . 3 2 3 . 3 . 13 3 7 Weapon 37 | . 1 4 7 3 1 . 1 . 1 13 6 Tool/Special 2 | . . . . . . . . . . . 2 Average Slot Usage (%) 93 | . 95 100 99 99 100 99 99 90 67 87 87 Engine 7 | . 13 14 7 8 11 9 9 7 3 1 7 Core 1 | . . . 3 2 . . . . . 1 . Reactor 1 | . . . . . . . . . 1 4 . Wheel 22 | . 28 28 22 21 22 18 17 21 9 26 25 Device 6 | . 3 11 11 4 7 9 9 7 8 3 4 Storage 9 | . 14 14 11 11 11 9 9 7 6 7 7 Processor 6 | . 6 2 . 6 3 8 9 7 7 10 7 Protection 1 | . . . . . . 8 8 7 . . . Energy Gun 1 | . 21 . . . . . . . . . . Energy Cannon 6 | . 3 14 22 9 . . 4 7 1 . 1 Ballistic Gun 24 | . 3 14 21 34 41 34 25 15 16 23 17 Ballistic Cannon 2 | . . . . . . . 4 7 . 4 7 Peak Build Rating 56 | 7 9 11 27 29 35 40 45 53 55 56 56 Average Rating 33 | 5 8 10 22 27 29 37 41 49 42 51 49 On Entrance 27 | . 7 9 11 27 29 30 37 45 44 46 46 Naked Turns . | . . . . . . . . . . . . Heaviest Build 182 | 13 50 51 105 107 109 126 132 127 177 179 182 Greatest Support 54 | 26 20 20 24 24 24 24 24 52 52 54 52 Greatest Overweight (x) 11 | . 2 2 5 4 4 5 9 5 6 5 11 Average Overweight (x) 3 | . 1 2 2 4 4 4 4 2 3 3 3 Largest Inventory Capacity 30 | 8 20 20 25 25 25 25 25 25 30 30 30 Average Capacity 24 | 7 19 20 20 25 25 25 25 25 25 30 30 Most Carried 30 | 8 20 20 25 25 25 25 25 25 26 30 30 Average Carried 24 | 5 18 19 20 24 24 24 24 24 18 29 27 Final Capacity 30 | 8 20 20 25 25 25 25 25 25 30 30 30 Final Carried 30 | 8 20 20 25 25 25 25 25 25 26 30 25 Class Distribution -------------------- 42% | Gunner 24% | Hauler-Gunner 15% | Mutant 12% | Scavenger-Gunner 3% | Hauler-Mutant Dominant Class ---------------- Mutant | -10/Materials Mutant | -10/Mines Gunner | -9/Materials Gunner | -9/Storage Gunner | -9/Garrison Gunner | -8/Materials Scavenger-Gunner | -8/Garrison Scavenger-Gunner | -7/Factory Hauler-Mutant | -7/Waste Hauler-Gunner | -7/Factory Hauler-Gunner | -7/Garrison Resources | -11 -10 -10 -9 -9 -9 -8 -8 -7 -7 -7 -7 ----------- Run | Yrd Mat Min Mat Sto Gar Mat Gar Fac Was Fac Gar Matter Collected 9054 | 314 244 101 939 1222 841 891 789 129 197 2959 428 Remotely 192 | . . . . . . 150 . . . . 42 Salvage Created 11563 | 234 570 318 1591 1507 950 1048 907 298 102 3552 486 Parts 644 | 24 35 10 80 108 78 62 51 9 . 168 19 Haulers Intercepted 19 | . 2 . 5 3 . 4 . . . 5 . Recyclers Shooed 7 | . 1 1 1 1 . . . . . 3 . Parts Field Recycled . | . . . . . . . . . . . . Retrieved Matter . | . . . . . . . . . . . . Parts Self-Destructed . | . . . . . . . . . . . . Prevented . | . . . . . . . . . . . . Kills | -11 -10 -10 -9 -9 -9 -8 -8 -7 -7 -7 -7 ------- Run | Yrd Mat Min Mat Sto Gar Mat Gar Fac Was Fac Gar Combat Hostiles Destroyed 195 | . 12 2 24 23 24 18 23 4 . 51 14 Melee 1 | . . . . . . . . . . . 1 Guns 123 | . 8 2 9 16 20 15 18 1 . 30 4 Cannons 43 | . 1 . 15 3 . . 5 2 . 9 8 AOE 26 | . 3 . . 4 4 3 . . . 12 . Classes Destroyed 19 | 3 4 . 3 1 4 . . . 1 3 . Worker 21 | 2 1 1 5 4 . 1 . . . 7 . Builder 10 | . . . 1 4 . . . 1 . 4 . Tunneler 8 | 5 . 2 . . . . . 1 . . . Hauler 19 | . 2 . 5 3 . 4 . . . 5 . Recycler 26 | 1 1 1 1 3 . 3 . 1 . 15 . Mechanic 7 | . . . . 1 . 1 . . . 5 . Operator 7 | . . . 1 3 . 1 . . . 2 . Watcher 11 | . 2 . 5 2 . 1 . . . 1 . Swarmer 63 | . 6 . 6 7 10 11 4 . . 16 3 Grunt 71 | . 6 2 11 6 4 3 14 2 . 13 10 Brawler 5 | . . . . . 1 1 1 . . 2 . Duelist 2 | . . . . . 1 . . . . 1 . Protector 2 | . . . . . . . . . . 2 . Sentry 34 | . . . 7 9 6 3 4 2 . 3 . Specialist 2 | . . . . . 1 . . . . 1 . Hunter 7 | . . . . . . . . . . 6 1 Programmer 7 | . . . . . . . . . . 7 . Behemoth 1 | . . . . . 1 . . . . . . Surgeon 2 | . . . . . . . . . 1 1 . Thug 7 | . . 1 . . . . . . . 6 . Butcher 1 | . . . . . . . . . . 1 . Martyr 1 | . . . . . . . . . 1 . . Best Kill Streak 15 | 5 6 2 4 10 7 6 4 3 . 15 7 Combat Bots Only 10 | . 5 1 4 6 7 5 4 2 . 10 7 Max Kills in Single Turn 7 | 1 3 1 2 3 4 3 1 1 1 7 1 Gunslinging 1 | . . . . 1 . 1 . . . 1 . Exploded 5 | . 3 . . 2 4 3 . . . 5 . Melee 1 | . . . . . . . . . . . 1 Uniques/NPCs Destroyed 1 | . . . . 1 . . . . . . . 01-MTF (-9/Storage) Combat | -11 -10 -10 -9 -9 -9 -8 -8 -7 -7 -7 -7 -------- Run | Yrd Mat Min Mat Sto Gar Mat Gar Fac Was Fac Gar Hostile Shots Fired 727 | . 35 3 93 73 60 44 37 59 9 244 70 Missed 197 | . 8 . 25 20 22 15 7 18 1 65 16 Hits 530 | . 27 3 68 53 38 29 30 41 8 179 54 Melee 10 | . . . . . 2 . . . 8 . . Projectile 520 | . 27 3 68 53 36 29 30 41 . 179 54 Critical Strikes 17 | . . 1 2 2 2 . 1 . 3 3 3 Damage Taken 7151 | . 290 50 853 625 904 275 423 312 364 2184 871 Core 1088 | . 43 . 46 123 126 37 49 29 150 340 145 Absorbed by Shields 353 | . . . . . . . . . . 353 . Ignored by Resistances 6 | . . . . . . . . . . 6 . Regen/Repaired (Parts) 796 | . . . 141 360 . . . . 182 113 . Core Remaining (%) 73 | 100 . 82 . . 26 . 84 . . . . Volleys Fired 563 | 14 47 11 86 61 53 46 63 15 . 137 30 Largest 4 | 2 2 2 4 4 4 4 4 4 . 4 4 Hottest 217 | 70 100 80 200 200 96 96 185 185 . 142 217 Shots Fired 1785 | 28 91 23 335 211 174 166 167 42 . 455 93 Gun 1320 | 28 86 12 163 150 172 160 108 18 . 377 46 Cannon 446 | . 3 11 172 58 . 5 57 24 . 69 47 Launcher 18 | . 1 . . 3 2 1 2 . . 9 . Special 1 | . 1 . . . . . . . . . . Kinetic 1352 | 14 3 12 163 150 172 160 128 27 . 442 81 Thermal 391 | 14 63 11 172 58 . 5 37 15 . 4 12 Explosive 18 | . 1 . . 3 2 1 2 . . 9 . Electromagnetic 24 | . 24 . . . . . . . . . . Robot Hit Streak 20 | 13 7 14 20 13 15 9 18 16 . 18 5 Robot Miss Streak 8 | 5 7 2 8 6 3 5 5 3 . 4 4 Penetration Max 1 | . . . . . . . . . . 1 1 Secondary Targets 14 | . 3 . . 2 1 1 2 . . 4 1 Max Gunslinging Chain 1 | . 1 . . 1 1 1 1 . . 1 1 Shots Hit Robots 928 | 18 51 17 176 99 88 85 75 28 4 240 47 Core Hits 506 | 11 28 9 55 58 39 42 50 20 . 179 15 Critical Kills 6 | . . . . . 2 . . 1 . 3 . Critical Parts Destroyed 11 | . . . 1 . . . . . . 9 1 Critical Strikes 26 | . 2 . 1 . 2 . 1 1 . 15 4 Burn 2 | . 2 . . . . . . . . . . Meltdown 1 | . . . . . . . . 1 . . . Destroy 11 | . . . 1 . 2 . . . . 8 . Blast 7 | . . . . . . . 1 . . 3 3 Smash 5 | . . . . . . . . . . 4 1 Melee Attacks 62 | . . . . 2 14 2 15 . 4 15 10 Impact 59 | . . . . 1 14 2 15 . 4 13 10 Slashing . | . . . . . . . . . . . . Piercing 2 | . . . . . . . . . . 2 . Sneak Attacks 13 | . . . . 1 . . . . 4 8 . Combat Hostiles . | . . . . . . . . . . . . Follow-up Attacks . | . . . . . . . . . . . . Damage Inflicted 24143 | 203 828 288 3405 2238 1610 1703 1567 720 272 10015 1294 Guns 12717 | 203 670 96 1678 1461 1414 1487 1118 270 . 3953 367 Cannons 4862 | . 35 175 1727 475 . . 366 450 . 939 695 Explosions 4777 | . 123 . . 302 196 216 83 . . 3857 . Melee 1770 | . . . . . . . . . 272 1266 232 Ramming 17 | . . 17 . . . . . . . . . Kinetic 13624 | 90 15 96 1678 1461 1414 1487 1265 429 . 4892 797 Thermal 4721 | 113 505 175 1727 475 . . 219 291 . 951 265 Explosive 3826 | . 123 . . 302 196 216 83 . . 2906 . Electromagnetic 185 | . 185 . . . . . . . . . . Impact 1770 | . . . . . . . . . 272 1266 232 Slashing . | . . . . . . . . . . . . Piercing . | . . . . . . . . . . . . Highest Corruption 7 | . 2 2 . 1 4 . . . . 7 7 Average Corruption 3 | . 1 2 . 1 1 . . . . 5 7 Corruption Purged . | . . . . . . . . . . . . Corruption Blocked . | . . . . . . . . . . . . Effects 106 | . 8 10 . 3 8 . . . . 66 11 Message Errors 20 | . 2 2 . 1 1 . . . . 11 3 Matter Fused 23 | . 1 1 . . 1 . . . . 15 5 Heat Flow Errors 13 | . 1 2 . 1 1 . . . . 8 . Energy Discharges 14 | . 1 2 . . 2 . . . . 8 1 Parts Rejected 1 | . . . . . . . . . . 1 . Data Loss (minor) 14 | . 2 1 . 1 1 . . . . 8 1 Data Loss (major) 6 | . 1 . . . . . . . . 5 . Misfires 8 | . . 1 . . 2 . . . . 4 1 Alerts 3 | . . 1 . . . . . . . 2 . Weapon Failures 4 | . . . . . . . . . . 4 . Overload Shots . | . . . . . . . . . . . . Overflow Damage 1456 | . . . 47 . 27 33 . . 130 1182 37 Projectiles 108 | . . . 47 . . . . . . 61 . Explosions 245 | . . . . . 27 33 . . . 185 . Melee 1103 | . . . . . . . . . 130 936 37 Knockbacks 21 | . . . . . . . . 1 3 13 4 Impact 4 | . . . . . . . . . 2 1 1 Kinetic 15 | . . . . . . . . 1 . 11 3 Secondary 2 | . . . . . . . . . 1 1 . Self-Inflicted Damage 228 | . . 8 . 9 48 . . . . 163 . Shots 8 | . . . . 1 1 . . . . 6 . Rammed 1 | . . 1 . . . . . . . . . Targets Rammed 1 | . . 1 . . . . . . . . . Kicked . | . . . . . . . . . . . . Crushed . | . . . . . . . . . . . . Highest Temperature 434 | 80 226 322 296 262 434 28 148 90 . 291 357 Average Temperature 77 | 25 80 151 93 67 117 11 38 51 . 69 115 Received Heat Transfer 2233 | . 96 45 333 189 422 36 207 93 . 380 432 Effects 3 | . . . 1 . 1 . . . . . 1 Interference 1 | . . . 1 . . . . . . . . Matter Decay 1 | . . . . . 1 . . . . . . Short Circuit 1 | . . . . . . . . . . . 1 Siege Activations . | . . . . . . . . . . . . Martial Activations . | . . . . . . . . . . . . Shielding Activations . | . . . . . . . . . . . . Robots Disrupted . | . . . . . . . . . . . . Combat Hostiles . | . . . . . . . . . . . . Robots Corrupted 8 | . . . . . . . . . 2 5 1 Combat Hostiles 1 | . . . . . . . . . . . 1 Parts Fried 9 | . 1 . . . . . . . 3 3 2 Impact Corruptions 30 | . . . . . . . . . 4 24 2 Robots Melted 1 | . . . . . . . . 1 . . . Combat Hostiles 1 | . . . . . . . . 1 . . . Parts Melted 19 | 2 4 1 7 . . . 2 3 . . . Heat Transferred 7845 | 333 1544 370 3071 703 . . 324 450 . 650 400 Parts Sabotaged . | . . . . . . . . . . . . Parts Stolen . | . . . . . . . . . . . . Parts Stripped . | . . . . . . . . . . . . Power Chain Reactions . | . . . . . . . . . . . . Alert | -11 -10 -10 -9 -9 -9 -8 -8 -7 -7 -7 -7 ------- Run | Yrd Mat Min Mat Sto Gar Mat Gar Fac Was Fac Gar Maximum Alert Level 5 | . . . 2 2 4 3 5 3 1 3 3 Low Security (%) 38 | 100 100 100 21 58 8 . . . 84 35 . Level 1 21 | . . . 34 40 28 . . . 15 32 . Level 2 13 | . . . 44 1 12 35 8 . . 15 . Level 3 18 | . . . . . 28 64 37 100 . 17 100 Level 4 6 | . . . . . 22 . 42 . . . . Level 5 1 | . . . . . . . 11 . . . . High Security . | . . . . . . . . . . . . Max Security . | . . . . . . . . . . . . Peak Influence 1692 | 10 116 34 495 419 1338 1076 1692 910 283 1044 1074 Initial 888 | . . 8 . 189 113 651 689 888 283 . 728 Average 426 | 1 34 4 312 197 684 803 1158 863 63 369 906 Influence Increases 8341 | 40 452 99 1113 871 1265 712 1093 135 8 2127 426 Destroy 0b10 Robot/C 4240 | . 240 60 600 440 560 420 480 80 . 1080 280 Destroy 0b10 Robot/NC 565 | 40 30 20 90 100 5 55 . 15 . 210 . Destroy Leader 810 | . 58 10 180 140 20 90 20 30 . 242 20 Allied During Kill 269 | . . 9 28 . 23 12 29 . . 168 . Successful Hack 207 | . 8 . 51 47 21 13 16 . . 37 14 Select Force Hacks 60 | . 60 . . . . . . . . . . Disable Machine 420 | . 15 . 45 75 15 30 30 . . 195 15 Anti-Garrison Action 1000 | . . . . . 550 . 400 . . . 50 Destroy Structure 485 | . 11 . 14 54 71 17 118 10 8 165 17 Lose Combat Pursuer 285 | . 30 . 105 15 . 75 . . . 30 30 Influence Decreases 7267 | 40 429 122 664 1146 101 989 462 1018 817 1086 393 Entered New Map 3038 | . . 15 . 260 61 687 372 804 526 . 313 Time Decay 3074 | 40 389 87 604 586 . 262 . 214 221 671 . Lost Part 210 | . 40 . 20 . . . 10 . 30 30 80 Lost Ally 350 | . . 20 40 . 40 40 80 . 40 90 . Purge Threat 595 | . . . . 300 . . . . . 295 . Squads Dispatched 31 | . 3 1 4 2 . 4 . 2 . 15 . Investigation 10 | . 2 1 2 1 . 1 . . . 3 . Extermination 6 | . . . . . . . . . . 6 . Reinforcement 10 | . 1 . 2 . . 1 . 1 . 5 . Assault 3 | . . . . . . 1 . 1 . 1 . Garrison 2 | . . . . 1 . 1 . . . . . Intercept . | . . . . . . . . . . . . Searches Triggered . | . . . . . . . . . . . . Construction Impeded . | . . . . . . . . . . . . Haulers Reinforced 1 | . . . . . . . . . . 1 . Active Scanning Responses . | . . . . . . . . . . . . Cargo Convoy Interrupts 1 | . . . . . . . . . . 1 . Stealth | -11 -10 -10 -9 -9 -9 -8 -8 -7 -7 -7 -7 --------- Run | Yrd Mat Min Mat Sto Gar Mat Gar Fac Was Fac Gar Distress Signals 11 | . 1 . 6 . . 1 . 1 . 2 . Communications Jammed . | . . . . . . . . . . . . Distress Signals . | . . . . . . . . . . . . Times Spotted 287 | . 25 5 49 30 26 31 22 7 6 73 13 Peak Tracking Total 8 | . 4 3 7 6 5 7 4 2 6 8 4 Tactical Retreats 15 | . 2 . 5 2 . 2 . . . 2 2 Traps | -11 -10 -10 -9 -9 -9 -8 -8 -7 -7 -7 -7 ------- Run | Yrd Mat Min Mat Sto Gar Mat Gar Fac Was Fac Gar Traps Triggered 27 | . 3 . 1 4 6 . 2 1 . 8 2 Indirectly . | . . . . . . . . . . . . Trap Hack Attempts . | . . . . . . . . . . . . Triggered . | . . . . . . . . . . . . Disarmed . | . . . . . . . . . . . . Reprogrammed . | . . . . . . . . . . . . Reused . | . . . . . . . . . . . . Traps Extracted . | . . . . . . . . . . . . Installed . | . . . . . . . . . . . . Triggered . | . . . . . . . . . . . . Machines | -11 -10 -10 -9 -9 -9 -8 -8 -7 -7 -7 -7 ---------- Run | Yrd Mat Min Mat Sto Gar Mat Gar Fac Was Fac Gar Machines Disabled 44 | . 1 . 3 5 8 2 10 . . 13 2 Max in Single Turn 4 | . 1 . 1 1 2 1 2 . . 4 1 Garrison Relay 11 | . . . . . 5 . 5 . . . 1 Phase Generator 2 | . . . . . 1 . 1 . . . . Machines Repaired . | . . . . . . . . . . . . Machines Dismantled 1 | . . . . . . . 1 . . . . Machines Sabotaged . | . . . . . . . . . . . . Overloaded Fab Kills . | . . . . . . . . . . . . Hacking | -11 -10 -10 -9 -9 -9 -8 -8 -7 -7 -7 -7 --------- Run | Yrd Mat Min Mat Sto Gar Mat Gar Fac Was Fac Gar Machines Accessed 63 | . 7 1 12 12 4 3 4 5 . 14 1 Terminals 41 | . 5 . 7 9 4 2 4 1 . 8 1 Fabricators 4 | . . . . . . . . 2 . 2 . Repair Stations 5 | . . . 2 1 . . . 1 . 1 . Recycling Units 4 | . 2 . 1 1 . . . . . . . Scanalyzers 3 | . . . 2 . . . . . . 1 . Garrison Access 5 | . . . . 1 . 1 . 1 . 2 . Total Hacks 188 | . 19 1 42 49 11 12 6 11 . 36 1 Successful 92 | . 9 1 25 27 4 5 2 3 . 15 1 Failed 95 | . 10 . 16 22 7 7 4 8 . 21 . Catastrophic 14 | . 1 . . 4 1 . 1 2 . 5 . Database Lockouts 1 | . . . 1 . . . . . . . . Manual 69 | . 13 . 20 13 3 8 . . . 12 . Terminals 112 | . 11 . 23 30 11 8 6 5 . 17 1 Fabricators 10 | . . . . . . . . 3 . 7 . Repair Stations 19 | . . . 6 11 . . . 1 . 1 . Recycling Units 15 | . 8 . 3 4 . . . . . . . Scanalyzers 16 | . . . 10 . . . . . . 6 . Garrison Access 15 | . . . . 4 . 4 . 2 . 5 . Terminal Hacks 33 | . . 1 5 13 3 2 2 1 . 5 1 Part Schematic 1 | . . . 1 . . . . . . . . Robot Schematic 1 | . . . . 1 . . . . . . . Prototype ID Bank 1 | . . . . 1 . . . . . . . Open Door 5 | . . 1 . 3 1 . . . . . . Branch Access Points 2 | . . . 1 . . . . . . 1 . Emergency Access Points 3 | . . . . . 1 . . . . 2 . Terminal Index 2 | . . . 1 . . 1 . . . . . Alert Level 2 | . . . . 1 . . . 1 . . . Unreport Threat 4 | . . . . 2 . . . . . 2 . Locate Traps 4 | . . . 1 3 . . . . . . . Hauler Manifests 1 | . . . . 1 . . . . . . . Registered Components 1 | . . . 1 . . . . . . . . Zone Layout 2 | . . . . 1 . 1 . . . . . Garrison Registry 1 | . . . . . . . 1 . . . . Patrol Navigation 1 | . . . . . 1 . . . . . . Security Stations 2 | . . . . . . . 1 . . . 1 Fabricator Hacks 4 | . . . . . . . . 1 . 3 . Network Status 2 | . . . . . . . . 1 . 1 . Load Schematic 1 | . . . . . . . . . . 1 . Build 1 | . . . . . . . . . . 1 . Repair Station Hacks 13 | . . . 5 8 . . . . . . . Scan Component 7 | . . . 3 4 . . . . . . . Repair 6 | . . . 2 4 . . . . . . . Recycling Unit Hacks 4 | . 2 . 1 1 . . . . . . . Retrieve Components 4 | . 2 . 1 1 . . . . . . . Scanalyzer 14 | . . . 10 . . . . . . 4 . Insert Component 7 | . . . 5 . . . . . . 2 . Analyze 7 | . . . 5 . . . . . . 2 . Garrison Access Hacks 4 | . . . . 1 . 1 . 1 . 1 . Unlock Access 4 | . . . . 1 . 1 . 1 . 1 . Unauthorized Hacks 20 | . 7 . 4 4 1 2 . . . 2 . Terminals 13 | . 5 . 4 2 1 1 . . . . . Botnet 2 | . . . . 2 . . . . . . . Skim 10 | . 5 . 4 . . 1 . . . . . Override 1 | . . . . . 1 . . . . . . Fabricators 1 | . . . . . . . . . . 1 . Haulers 1 | . . . . . . . . . . 1 . Repair Stations 1 | . . . . . . . . . . 1 . Patch 1 | . . . . . . . . . . 1 . Recycling Units 2 | . 2 . . . . . . . . . . Tunnel 2 | . 2 . . . . . . . . . . Scanalyzers . | . . . . . . . . . . . . Garrison Access 3 | . . . . 2 . 1 . . . . . Broadcast 1 | . . . . 1 . . . . . . . Redirect 1 | . . . . 1 . . . . . . . Reprogram 1 | . . . . . . 1 . . . . . Data Cores Recovered 4 | . . . . 2 . 1 . . . 1 . Used 1 | . . . . 1 . . . . . . . Hacking Detections 56 | . 6 . 11 11 3 3 4 5 . 13 . Full Trace Events 6 | . . . 1 1 2 1 . . . 1 . Feedback Events . | . . . . . . . . . . . . Feedback Blocked . | . . . . . . . . . . . . Robot Schematics Acquired 1 | . . . . 1 . . . . . . . Robots Built 1 | . . . . . . . . . . 1 . Authchips 1 | . . . . . . . . . . 1 . Time 40 | . . . . . . . . . . 40 . Total Robot Build Rating 1 | . . . . . . . . . . 1 . Part Schematics Acquired 8 | . . . 6 . . . . . . 2 . Parts Built . | . . . . . . . . . . . . Authchips . | . . . . . . . . . . . . Time . | . . . . . . . . . . . . Total Part Build Rating . | . . . . . . . . . . . . Parts Repaired 6 | . . . 2 4 . . . . . . . Time 222 | . . . 82 140 . . . . . . . Parts Recycled . | . . . . . . . . . . . . Recycled Matter . | . . . . . . . . . . . . Retrieved Matter . | . . . . . . . . . . . . Retrieved Components 36 | . 16 . 10 10 . . . . . . . Parts Scanalyzed 7 | . . . 5 . . . . . . 2 . Part Schematics Acquired 7 | . . . 5 . . . . . . 2 . Parts Damaged . | . . . . . . . . . . . . Bothacking | -11 -10 -10 -9 -9 -9 -8 -8 -7 -7 -7 -7 ------------ Run | Yrd Mat Min Mat Sto Gar Mat Gar Fac Was Fac Gar Used RIF Installer . | . . . . . . . . . . . . Robots Hacked 1 | . . . . 1 . . . . . . . Non-combat . | . . . . . . . . . . . . Combat 1 | . . . . 1 . . . . . . . Robot Hacks Applied 1 | . . . . 1 . . . . . . . parse_system 1 | . . . . 1 . . . . . . . Relay Couplers Released 45 | . . . . . 20 . 20 . . . 5 Machine Destruction 45 | . . . . . 20 . 20 . . . 5 Fabnet Peak Effective % . | . . . . . . . . . . . . Robots Rewired 3 | . . . . . 3 . . . . . . Allies Hacked . | . . . . . . . . . . . . Hacks Repelled . | . . . . . . . . . . . . Allies | -11 -10 -10 -9 -9 -9 -8 -8 -7 -7 -7 -7 -------- Run | Yrd Mat Min Mat Sto Gar Mat Gar Fac Was Fac Gar Total Allies 30 | . . 3 . . 4 2 2 . 18 1 . Largest Group 18 | . . 3 2 . 3 2 2 . 18 12 . Highest-Rated Group 444 | . . 40 32 . 25 16 51 . 444 315 . Highest-Rated Ally 35 | . . 16 16 . 25 8 31 . 35 31 . Initial Warlord ECA Mod 90 | . . . . . . 9 9 18 18 18 18 Total Orders . | . . . . . . . . . . . . Ally Attacks 301 | . . 10 24 . 21 11 18 . 148 69 . Total Damage 4461 | . . 85 260 . 186 98 196 . 2777 859 . Kills 29 | . . 1 6 . 4 3 1 . 8 6 . Allies Corrupted 2 | . . . . . . . . . 2 . . Allies Melted 1 | . . . . . . . 1 . . . . Intel | -11 -10 -10 -9 -9 -9 -8 -8 -7 -7 -7 -7 ------- Run | Yrd Mat Min Mat Sto Gar Mat Gar Fac Was Fac Gar Active Infowar (turns) 2142 | 39 285 . . . . . . . . 1818 . Seismic 324 | 39 285 . . . . . . . . . . Machine Analysis 1818 | . . . . . . . . . . 1818 . Robot Analysis Total . | . . . . . . . . . . . . Derelict Logs Recovered 2 | . . 2 . . . . . . . . . Drone Launches . | . . . . . . . . . . . . Drone Recoveries . | . . . . . . . . . . . . Exploration | -11 -10 -10 -9 -9 -9 -8 -8 -7 -7 -7 -7 ------------- Run | Yrd Mat Min Mat Sto Gar Mat Gar Fac Was Fac Gar Turns Passed 15114 | 205 1238 681 2239 1830 1545 572 1490 458 1010 3456 390 Spaces Moved 8754 | 161 945 559 1351 884 835 256 724 288 586 2012 153 Core 2 | 2 . . . . . . . . . . . Treads . | . . . . . . . . . . . . Legs . | . . . . . . . . . . . . Wheels 8752 | 159 945 559 1351 884 835 256 724 288 586 2012 153 Hover . | . . . . . . . . . . . . Flight . | . . . . . . . . . . . . Fastest Speed 50 | 50 80 110 110 150 150 150 150 108 95 132 132 Average Speed 135 | 84 109 110 125 150 150 150 159 131 146 137 146 Slowest Speed 265 | 90 110 110 155 150 150 165 225 165 190 175 265 Overloaded Moves . | . . . . . . . . . . . . Propulsion Burnouts . | . . . . . . . . . . . . Robots Hopped . | . . . . . . . . . . . . Potential Cave-ins . | . . . . . . . . . . . . Cave-ins Triggered . | . . . . . . . . . . . . Exploration Rate (%) 64 | 5 99 97 91 94 95 27 80 8 97 56 30 Regions Visited 11 Branch Regions 2 Pre-discovered Areas 4 | . 2 2 . . . . . . . . . Known Exits Taken 4 | . . . 1 1 . 1 . . . 1 . Unknown Exits Taken 3 | 1 1 1 . . . . . . . . . Scrap Searched 2 | . . 2 . . . . . . . . . Spaces Dug 89 | . 9 . . 20 4 9 4 3 . 36 4 Terrain Destroyed 432 | . 9 . 14 53 67 10 86 10 . 176 7 Melee 18 | . . . . . 4 2 4 . . 4 4 Projectile 96 | . 1 . 14 33 . 3 . 10 . 32 3 AOE 317 | . 8 . . 20 63 5 82 . . 139 . Terrain Rammed . | . . . . . . . . . . . . Walls Destroyed . | . . . . . . . . . . . . Machines Disabled . | . . . . . . . . . . . . Actions | -11 -10 -10 -9 -9 -9 -8 -8 -7 -7 -7 -7 --------- Run | Yrd Mat Min Mat Sto Gar Mat Gar Fac Was Fac Gar Total 10804 | 208 1060 606 1721 1270 1002 348 900 340 726 2383 240 Wait 696 | . 25 19 167 251 26 16 25 20 83 45 19 Move 8743 | 160 944 558 1350 883 833 255 723 288 585 2011 153 Hop . | . . . . . . . . . . . . Pick Up 203 | 16 19 6 40 16 10 6 11 2 29 48 . Fast Attach 34 | 7 3 . 2 7 . 1 2 3 4 5 . Attach 27 | . 2 . 5 1 2 2 2 . 3 6 4 Detach 2 | . . . . . . . . 1 1 . . Swap 194 | 3 10 3 28 21 17 13 22 6 8 55 8 Drop 178 | 8 10 8 43 20 10 7 13 5 9 45 . Fire 563 | 14 47 11 86 61 53 46 63 15 . 137 30 Melee 62 | . . . . 2 14 2 15 . 4 15 10 Ram 1 | . . 1 . . . . . . . . . Kick . | . . . . . . . . . . . . Crush . | . . . . . . . . . . . . Escape Stasis 72 | . . . . 8 16 . 16 . . 16 16 Rewire 21 | . . . . . 21 . . . . . . Trap . | . . . . . . . . . . . . Miscellaneous 8 | . . . . . . . 8 . . . . Route ------- -11/Scrapyard -10/Materials (discovered 5 exits: *Mat x2 / *Min x2 / [*Sub]) -10/Mines (discovered 2 exits: *Mat x2) -9/Materials (discovered 7 exits: *Mat x3 / *Min x2 / *Sto x2) -9/Storage (discovered 3 exits: *Mat / [*Rec] / Gar) -9/Garrison (discovered 3 exits: *Mat x3) -8/Materials -8/Garrison (discovered 3 exits: *Fac x3) -7/Factory -7/Waste -7/Factory (discovered 4 exits: [*Fac] / Low x2 / Gar) -7/Garrison History --------- Turn | Location | Event 16 | -11/Scrapyard | Discovered new exit (range 16) 206 | -11/Scrapyard | Entered Materials 304 | -10/Materials | Build established: Mutant 451 | -10/Materials | Discovered new exit (range 15) 525 | -10/Materials | Lost 3 parts (1p1u1w) 591 | -10/Materials | Discovered new exit (range 16) 916 | -10/Materials | Discovered new exit (range 8) 985 | -10/Materials | Discovered new exit (range 15) 1079 | -10/Materials | Discovered new exit (range 14) 1444 | -10/Materials | Entered Mines 1514 | -10/Mines | Assisted by bots powering up and referring to "LRC-V3" 1645 | -10/Mines | Learned location of Storage (-9) 1653 | -10/Mines | Discovered new exit (range 9) 1702 | -10/Mines | Discovered new exit (range 11) 1943 | -10/Mines | Learned location of Recycling (-9) 1947 | -10/Mines | Learned Materials interactive machine intel 1987 | -10/Mines | Met a Derelict shopkeep closing up shop 2125 | -10/Mines | Entered Materials 2125 | -9/Materials | Accompanied by 2 allies 2125 | -9/Materials | Evolved 2 slots: Weapon x2 2126 | -9/Materials | Loaded intel: 18 interactive machine locations 2224 | -9/Materials | Discovered new exit (range 10) 2367 | -9/Materials | Discovered new exit (range 7) 2428 | -9/Materials | Build established: Gunner 2709 | -9/Materials | Identified exit to Mines 2709 | -9/Materials | Identified exit to Storage 2741 | -9/Materials | Build established: Scavenger-Gunner 3131 | -9/Materials | Build established: Gunner 3137 | -9/Materials | Central database locked down 3263 | -9/Materials | Discovered new exit (range 15) 3541 | -9/Materials | Discovered new exit (range 15) 3739 | -9/Materials | Discovered new exit (range 7) 4178 | -9/Materials | Repaired Broken Hvy. Assault Rifle 4217 | -9/Materials | Repaired Minigun 4364 | -9/Materials | Entered Storage 4973 | -9/Storage | Used back door to open Recycling access 4973 | -9/Storage | Discovered new exit (range 5) 5056 | -9/Storage | Identified exit to Garrison 5143 | -9/Storage | Garrison activated, responded to threat 5375 | -9/Storage | Repaired Arm. Wheel 5409 | -9/Storage | Repaired Arm. Wheel 5448 | -9/Storage | Repaired Minigun 5488 | -9/Storage | Repaired Minigun 5696 | -9/Storage | Discovered new exit (range 16) 5789 | -9/Storage | Met 01-MTF 6114 | -9/Storage | Destroyed 01-MTF 6123 | -9/Storage | Found 01-MTF's Shockpuncher 6126 | -9/Storage | Found Corrupted 01-MTF's Autohacker 6194 | -9/Storage | Entered Garrison 6290 | -9/Garrison | Triggered checkpoint 6324 | -9/Garrison | Garrison Relay disabled 6368 | -9/Garrison | Rescued a captive Derelict 6468 | -9/Garrison | Phase Generator disabled 6635 | -9/Garrison | Spotted B-75 Beast 6654 | -9/Garrison | Core integrity fell below 50% 6672 | -9/Garrison | Destroyed B-75 Beast 6736 | -9/Garrison | Found Powered Armor 6740 | -9/Garrison | Found Powered Armor 6743 | -9/Garrison | Found Powered Armor 6832 | -9/Garrison | Destroyed 7 combat bots 6928 | -9/Garrison | Discovered new exit (range 10) 6956 | -9/Garrison | Garrison Relay disabled 7028 | -9/Garrison | Triggered checkpoint 7183 | -9/Garrison | Triggered checkpoint 7206 | -9/Garrison | Identified exit to Materials 7228 | -9/Garrison | Triggered checkpoint 7324 | -9/Garrison | Triggered checkpoint 7393 | -9/Garrison | Garrison Relay disabled 7402 | -9/Garrison | Triggered checkpoint 7429 | -9/Garrison | Garrison Relay disabled 7612 | -9/Garrison | Garrison Relay disabled 7624 | -9/Garrison | Triggered checkpoint 7739 | -9/Garrison | Entered Materials 7739 | -8/Materials | Accompanied by 2 allies 7739 | -8/Materials | Evolved 2 slots: Utility x2 8139 | -8/Materials | First assault squad dispatched 8215 | -8/Materials | Garrison activated, responded to threat 8256 | -8/Materials | Identified exit to Garrison 8311 | -8/Materials | Entered Garrison 8311 | -8/Garrison | Accompanied by 2 allies 8382 | -8/Garrison | Triggered checkpoint 8428 | -8/Garrison | Discovered new exit (range 57) 8428 | -8/Garrison | Discovered new exit (range 77) 8428 | -8/Garrison | Discovered new exit (range 41) 8435 | -8/Garrison | Garrison Relay disabled 8462 | -8/Garrison | Garrison Relay disabled 8612 | -8/Garrison | Triggered checkpoint 8661 | -8/Garrison | Triggered checkpoint 8779 | -8/Garrison | Learned Factory security intel 8955 | -8/Garrison | Triggered checkpoint 8991 | -8/Garrison | Garrison Relay disabled 9028 | -8/Garrison | Rescued a captive Derelict 9030 | -8/Garrison | Rescued a captive Derelict 9072 | -8/Garrison | Found Powered Armor 9075 | -8/Garrison | Found Powered Armor 9078 | -8/Garrison | Found Powered Armor 9211 | -8/Garrison | Triggered checkpoint 9220 | -8/Garrison | Build established: Scavenger-Gunner 9263 | -8/Garrison | Triggered checkpoint 9382 | -8/Garrison | Garrison Relay disabled 9630 | -8/Garrison | Phase Generator disabled 9662 | -8/Garrison | Triggered checkpoint 9720 | -8/Garrison | Garrison Relay disabled 9801 | -8/Garrison | Entered Factory 9801 | -7/Factory | Evolved 2 slots: Propulsion x2 9922 | -7/Factory | Identified exit to Garrison 10201 | -7/Factory | First assault squad dispatched 10259 | -7/Factory | Sucked down chute 10259 | -7/Factory | Entered Waste 10268 | -7/Waste | Spotted C-40 Crusher 10304 | -7/Waste | Spotted C-40 Crusher 10352 | -7/Waste | Spotted C-40 Crusher 10354 | -7/Waste | Spotted C-40 Crusher 10377 | -7/Waste | Spotted C-40 Crusher 10380 | -7/Waste | Spotted C-40 Crusher 10390 | -7/Waste | Crushed by Compactor (1 part destroyed, 1 dropped) 10423 | -7/Waste | Crushed by Compactor (1 part destroyed, 2 dropped) 10424 | -7/Waste | Crushed by Compactor (0 parts destroyed, 1 dropped) 10427 | -7/Waste | Crushed by Compactor (0 parts destroyed, 1 dropped) 10430 | -7/Waste | Crushed by Compactor (1 part destroyed) 10468 | -7/Waste | Warlord forces began an assault 10485 | -7/Waste | Allies destroyed C-40 Crusher 10488 | -7/Waste | Allies destroyed C-40 Crusher 10496 | -7/Waste | Allies destroyed C-40 Crusher 10502 | -7/Waste | Allies destroyed C-40 Crusher 10511 | -7/Waste | Allies destroyed C-40 Crusher 10512 | -7/Waste | Allies destroyed C-40 Crusher 10536 | -7/Waste | Lost 4 allies 10719 | -7/Waste | Discovered new exit (range 11) 10847 | -7/Waste | Build established: Hauler-Mutant 10986 | -7/Waste | Found Damper Plating 11269 | -7/Waste | Entered Factory 11269 | -7/Factory | Accompanied by 12 allies 11377 | -7/Factory | Build established: Hauler-Gunner 11427 | -7/Factory | Lost 4 allies 11576 | -7/Factory | Found Prototype Launcher 11576 | -7/Factory | Identified Rocket Array 11821 | -7/Factory | Murdered 8 allies 11965 | -7/Factory | Discovered new exit (range 12) 12366 | -7/Factory | Fabricated O-16 Technician? 12699 | -7/Factory | Destroyed 7 combat bots 12748 | -7/Factory | Cargo convoy interrupted 12790 | -7/Factory | Destroyed 10 combat bots 13221 | -7/Factory | Identified exit to Lower Caves 13319 | -7/Factory | Core integrity fell below 50% 14266 | -7/Factory | Build established: Hauler-Tank 14469 | -7/Factory | First assault squad dispatched 14632 | -7/Factory | Build established: Hauler-Gunner 14702 | -7/Factory | Identified exit to Garrison 14725 | -7/Factory | Entered Garrison 14739 | -7/Garrison | Triggered checkpoint 14768 | -7/Garrison | Garrison Relay disabled 14857 | -7/Garrison | Learned Factory security intel 14938 | -7/Garrison | Core integrity fell below 20% 15019 | -7/Garrison | Triggered checkpoint 15037 | -7/Garrison | Triggered checkpoint 15049 | -7/Garrison | Triggered checkpoint 15104 | -7/Garrison | Destroyed 7 combat bots 15115 | -7/Garrison | Self-destructed Last Messages --------------- 15053_ G-47 Trooper destroyed. 15054_ Acquired 42 matter. 15060_ G-47 Trooper knocked back. 15063_ Slug penetrates Reinforced Barrier. 15063_ G-47 Trooper destroyed. 15065_ Rnf. Deuterium Engine broken. 15065_ Overheating: Short circuit. 15067_ G-47 Trooper destroyed. 15070_ Slug penetrates Wall. 15074_ Arm. Wheel destroyed. 15076_ Acquired 3 matter. 15080_ Acquired 22 matter. 15082_ Gauss Rifle destroyed. 15083_ G-47 Trooper destroyed. 15086_ Acquired 25 matter. 15089_ Acquired 10 matter. 15092_ Acquired 13 matter. 15094_ |KQT=M2UPU|OU,M#YQV 0C 15094_ Acquired 4 matter. 15105_ Acquired 6 matter. Map ----- +----------------------------------------------------+ | ???????????????????????# #?????????????????# #?? | | ???????????????????????# #???????????????### #?? | | ???????????????????????# #???????????????# #?? | | ???????????????????????# #???????????????# #?? | | ???????????????????????# #???????????????# #?? | | ???????????????????????# #???????????????### #?? | | ???????????????????????# #?????????????????# #?? | | ???????????????????????# #?????????????????# #?? | | ???????????????????????# #?????????????????# #?? | | ???????????????????????# #?????????????????# #?? | | ???????????????????????# #?????????????????# #?? | | ???????????????????????# #?????????????????# #?? | | ???????????????????????# #?????????????????# #?? | | ???????????????????????#;;############??????# #?? | | ???????????????????????# ???? #?? | | ???????????????????????# ???? ??? | | ???????????????????????# ############??????? ??? | | ???????????????????????# #?????????????????? ??? | | ???????????????????????# #??????????????????????? | | ???????????????????????# #??????????????????????? | | ???????????????????????# #??????????????????????? | | ?????????????????####??# #??????????????????????? | | ?????????????# ??# ?# #??????????????????????? | | ????????????## ## ## ##?????????????????????? | | ????????????# #?????????????????????? | | ?????????? [@*#?????????????????????? | | ?????????? #?????????????????????? | | ???????????## ## ## [=#?????????????????????? | | ???????????## ## #; =*###???????????????????? | | ??????????# % % *[* #???????????????????? | | ??????????# %[ #???????????????????? | | ??????????# % #???????????????????? | | ??????????# % #???????????????????? | | ??????????### ## ## ###???????????????????? | | ????????????# ??# ?# #?????????????????????? | | ??????????????? ^ ? ?????????????????????? | | ????????????? ^ ? ????????????????????? | | ????????????# g^ ##????????????????????? | | ????????????## ##""""######?????????????????????? | | ?????????????# ?????????????????????????????????? | | ?????????????#???????????????????????????????????? | | ?????????????????????????????????????????????????? | | ?????????????????????????????????????????????????? | | ?????????????????????????????????????????????????? | | ?????????????????????????????????????????????????? | | ?????????????????????????????????????????????????? | | ?????????????????????????????????????????????????? | | ?????????????????????????????????????????????????? | | ?????????????????????????????????????????????????? | | ?????????????????????????????????????????????????? | +----------------------------------------------------+ Best States ------------- Heat Dissipation 61 Coolant Potential 50 Energy Generation 21 Energy Capacity 500 Matter Stores 300 Matter Capacity 300 Sight Range 16 Terrain Scan Density 10 Armor Coverage 400 Resistance: KI 25 Evasion (%) 44 Targeting Accuracy 8 Core Analysis 6 Matter Filtering 50 Kinecelleration 30 Offensive Hacking 10 Authchip Count 1 Item Schematics ----------------- Wheel | -9/Materials | Scanalyzed Cargo Storage Unit | -9/Materials | Scanalyzed Lgt. Assault Rifle | -9/Materials | Scanalyzed Assault Rifle | -9/Materials | Hacked Med. Matter Pod | -9/Materials | Scanalyzed Cooling System | -9/Materials | Scanalyzed Lgt. Antimatter Cannon | -7/Factory | Scanalyzed Imp. Matter Compressor | -7/Factory | Scanalyzed Robot Schematics ------------------ O-16 Technician | -9/Storage | Hacked Fabricated ------------ O-16 Technician | x1 | -7/Factory | Authchip Repaired ---------- Hvy. Assault Rifle | 34% | -9/Materials | Broken Minigun | 47% | -9/Materials Arm. Wheel | 9% | -9/Storage Arm. Wheel | 24% | -9/Storage Minigun | 16% | -9/Storage Minigun | 28% | -9/Storage Alien Tech Used ----------------- None Achievements -------------- None Challenges ------------ None Game ------ Seed LinkedPortableCutter Manual? 0 Play Time 02:19:59 Cumulative 1200.6 hours Start 2025.08.05 @ 23:02:15 End 2025.08.06 @ 01:20:47 Sessions 1 Manual Loads 0 Difficulty Rogue Special Mode None Game No. 579 Rogue 579 Adventurer 0 Explorer 0 Win Type - Total 23 Types 10/4/3/0/1/1/2/2/0/0 Lore% 90 Gallery% 90 Achievement% 84 Wizard Run 0 Options --------- Layout 0 ASCII 0 Keyboard 0 Movement Numpad Keybinds 0 Fullscreen 2 Font 24/Smallcaps Map View 76x50 Zoom Use 0% Tactical HUD 1 Map Filters NONE Filters SHIFT_HUE(315) Steam 1 RUN: f3a68aa1-eddd-4879-8906-947b3682b7d7